[Event "Benidorm Open-A 2022"]
[Site "Benidorm"]
[Date "2022.12.10"]
[Round "9.25"]
[White "O`Neill Y Daneiko, Jose Antonio"]
[Black "Palomo Teruel, Xavier"]
[Result "0-1"]
[ECO "A16"]
[WhiteElo "1961"]
[BlackElo "2040"]
[Annotator "TA"]
[PlyCount "70"]
[EventDate "2022.12.03"]
[EventType "swiss"]
[EventCountry "ESP"]
[SourceTitle "playchess.com"]
[Source "ChessBase"]
[SourceQuality "1"]
[TimeControl "5400+30"]

{[%evp 10,70,9,11,16,10,67,0,1,4,4,1,21,-27,-30,-25,23,-12,0,-27,-30,-28,-27,-36,0,-50,-53,-64,-58,-69,-25,-31,-31,-55,-42,-312,-219,-560,-552,-1016,-1015,-1016,-1017,-979,-954,-987,-895,-854,-800,-894,-853,-885,-704,-943,-946,-946,-920,-1816,-1390,-1802,-1691,-1727,-1636]} 1. c4 Nf6 2. Nc3 g6 3. e4 e5 4. Nf3 Bg7 5. d4 exd4 6. Nxd4 O-O {A10: English Opening: Unusual Replies for Black.} 7. Be2 c6 (7... Re8 $11) 8. Nc2 (8. e5 $14 Ne8 9. Bf4) 8... Re8 $11 {The position is equal.} 9. f3 d5 10. cxd5 cxd5 11. Nxd5 (11. Bg5 {was preferrable.}) 11... Nxd5 12. Qxd5 {[#]} Qe7 $146 (12... Qc7 {should be considered.} 13. Qc4 Nc6) ({Predecessor:} 12... Qxd5 13. exd5 Nd7 14. Kf2 Nb6 15. Rd1 Bd7 16. Rb1 Rac8 17. Ne3 Na4 18. d6 Re6 {½-½ (76) Zhukova,N (2336)-Wagner,D (2581) Chess.com INT 2021}) 13. O-O (13. Bg5 {feels hotter.} Qc7 14. Nd4 Nc6 15. Nb5) 13... Be6 {[%mdl 1024] Black has compensation.} 14. Qd3 Nc6 {[%cal Bb8c6,Bc6d4,Bd4c2][%mdl 32]} 15. Qa3 Nd4 16. Bd3 Qc7 (16... Qxa3 {simplifies} 17. Nxa3 Red8 18. Bg5 Rd7) 17. Rf2 ({Better is} 17. Nxd4 $11 Bxd4+ 18. Kh1) 17... Nxc2 $15 18. Rxc2 Qb6+ 19. Kh1 $1 Rac8 {[#] aiming for ...Rxc2. Black is more active.} (19... Rec8 $5 {[%cal Rc8c2]} 20. Qa4 Rd8 $15) 20. Re2 Bd4 {And now ...Bc5 would win.} (20... Red8 {simplifies} 21. Be3 Bd4 22. Bg1 Bxg1 23. Rxg1 Bxa2 24. Qxa2 Rxd3 25. Qa1 a6) 21. Bf4 Red8 22. Rc1 {[%mdl 8192] Now White is beyond hope.} ({White must play} 22. Qa4 $1 $15) 22... Bc5 {[%mdl 64] [#] Deflection} 23. Qa4 ({But not} 23. Qc3 Bb4 24. Bc7 Qd4 25. Qxd4 Rxd4 $19) (23. Rxc5 Qxc5 24. Qxc5 Rxc5 25. Be3) 23... Rxd3 $19 {Black is clearly winning.} 24. Rec2 Bd7 25. Qc4 Bb5 26. Qxd3 Bxd3 {This pair of bishops is nice.} 27. Rc3 Qxb2 {[%cal Oc8c6] Hoping for ...Rc6!} 28. Rxd3 b6 29. Bh6 Re8 30. Rcd1 Bf8 31. Bc1 Qxa2 32. h4 h6 33. Rd8 Rxd8 34. Rxd8 Qa1 35. Rc8 Kg7 {Weighted Error Value: White=0.67/Black=0.33} 0-1

[Event "Benidorm Open-A 2022"]
[Site "Benidorm"]
[Date "2022.12.10"]
[Round "9.26"]
[White "Minana Menor, Antonio"]
[Black "Troffiguer, Olivier"]
[Result "1/2-1/2"]
[ECO "B10"]
[WhiteElo "2102"]
[BlackElo "2007"]
[Annotator "TA"]
[PlyCount "148"]
[EventDate "2022.12.03"]
[EventType "swiss"]
[EventCountry "ESP"]
[SourceTitle "playchess.com"]
[Source "ChessBase"]
[SourceQuality "1"]
[TimeControl "5400+30"]

{[%evp 11,148,-40,20,-10,14,-57,9,6,35,31,29,16,12,23,28,-40,4,6,8,0,0,0,-11,-25,-34,-25,-35,-41,-43,-31,-37,-57,-29,-94,-91,-89,-86,-97,-86,-110,-75,-155,-107,-189,-98,-161,-148,-136,-87,-206,-208,-210,-200,-199,-142,-159,-131,-152,-124,-127,-129,-128,-125,-139,-43,-53,-15,-25,0,0,0,0,0,0,12,16,12,-89,-40,-129,-137,-190,-191,-207,-206,-201,-200,-272,-262,-435,-433,-452,-448,-537,-515,-528,-483,-467,-403,-400,3,-541,-356,-381,0,0,0,0,0,0,0,0,0,0,0,0,0,0,0,0,8,8,8,0,0,-8,-8,-8,0,-8,-8,-8,-8,-8,-8,-8,-8,-8,-8]} 1. e4 c6 2. Nc3 d5 3. Qf3 dxe4 4. Nxe4 Nd7 5. d4 Ngf6 6. Bc4 e6 (6... Nb6 $1 $15 7. Bd3 (7. Bxf7+ $2 Kxf7 8. Ne2 Qd5 $19) 7... Qxd4) 7. Bg5 {B11: Caro-Kann: Two Knights Variation.} (7. Nxf6+ {simplifies} Nxf6 8. Ne2 Bd6 9. O-O) 7... Be7 {The main line 7...Be7 scores better than 7...Qa5+.} 8. h4 {[#]} (8. Nxf6+ $11 Bxf6 9. Bxf6 Nxf6 10. Ne2) 8... Nxe4 $146 (8... Nb6 $1 $15 9. Bd3 Qxd4) ({Predecessor:} 8... h6 9. Be3 Nxe4 10. Qxe4 Nf6 11. Qf3 Nd5 12. Qg3 Bf6 13. Nf3 b6 14. O-O-O Bb7 {½-½ (44) Fowler,S (2201)-Cohen,R (1841) Hastings 2006}) 9. Qxe4 $11 (9. Bxe7 $2 Qxe7 10. O-O-O Nd6 $19) 9... Bxg5 (9... b5 $5 {[%cal Rb5c4]} 10. Bd3 (10. Qxc6 Rb8 $11) 10... Bb7 $11) 10. hxg5 Qxg5 11. Nf3 Qa5+ 12. c3 {[%mdl 1024] White has compensation.} Nf6 13. Qc2 (13. Qf4 $11) 13... Qc7 14. O-O-O Bd7 15. Ne5 Rf8 16. g4 h6 17. Kb1 O-O-O 18. f4 Nd5 19. Qf2 {Prevents Ne3.} f6 20. Ng6 Rfe8 21. Be2 Ne7 22. Nh4 (22. Bd3 $11 {keeps the balance.}) 22... Kb8 $17 23. Ng2 e5 24. f5 exd4 25. Rxd4 Nd5 26. c4 (26. Bf3 $142) 26... Nb6 (26... Nb4 $142 {Hoping for ...c5.} 27. Rhd1 c5) 27. Nf4 (27. Rhd1 $17) 27... Bc8 ({Better is} 27... c5 $19 28. Rdd1 Re4) 28. Rhd1 (28. Rdd1 $17) 28... Rxd4 $19 29. Qxd4 Qe5 (29... c5 $142 30. Qf2 Re4) 30. Qd2 (30. b3 $17) 30... h5 $1 31. gxh5 Bxf5+ (31... Qxf5+ 32. Bd3 Qc5 33. b3 $17) 32. Ka1 Nc8 (32... a5 $19 33. Qd4 Qxd4 34. Rxd4 c5) 33. a3 Qe3 34. Qd4 Re4 35. Qxe3 Rxe3 36. c5 Kc7 37. Rg1 {[#]} Re7 (37... Re4 $1 $17 {[%cal Re4f4]} 38. Rf1 (38. Rxg7+ $2 {perishes.} Kb8 $19) 38... Ne7) 38. b4 b6 39. Kb2 bxc5 (39... a5 $5 {[%cal Ra5b4]}) 40. bxc5 Kd7 41. Ba6 Kc7 42. Ne2 Rd7 43. Rg3 Kd8 44. Rb3 (44. Bc4 $11) 44... Rd5 (44... Rd2+ $17 45. Kc3 Rd5) 45. Ng3 (45. Rb8 $15) 45... Bd7 $17 ({Don't take} 45... Rxc5 46. Nxf5 Rxf5 47. Rb8 $14) 46. h6 (46. Ne4 $17 {keeps fighting.}) 46... gxh6 $19 (46... Rxc5 $2 47. h7 (47. hxg7 Rg5 $14) 47... Nb6 48. h8=Q+ $18) 47. Ne4 f5 48. Nf6 Rxc5 49. Rb8 Be6 50. a4 $2 (50. Nh5 {might work better.}) 50... Ra5 51. Bd3 Rxa4 {White must now prevent ...Kc7.} 52. Rb7 a5 {Strongly threatening ...Rb4+.} 53. Rh7 Rb4+ 54. Kc3 Rb3+ 55. Kc2 {[%cal Od3c4]} a4 $2 {[#]} (55... Nd6 $19 56. Ra7 Ra3) 56. Rxh6 $2 {[%mdl 8192]} (56. Bc4 $1 $11 Re3 (56... Rb7 57. Rxb7) 57. Bxe6) 56... Ke7 57. Nh5 a3 $2 ({Black should try} 57... Nd6 $19 58. Ng7 Bc8) 58. Rxe6+ $1 $11 {[%mdl 64] Decoy. The position is equal.} Kxe6 {[%mdl 4096] Endgame KRN-KBN} 59. Bc4+ Ke5 60. Kxb3 Nd6 61. Be2 f4 62. Kxa3 Nf5 63. Kb4 Nd4 64. Bf1 Ne6 65. Bh3 f3 66. Ng3 Ng5 67. Bf1 Kf4 68. Nh1 Ne4 69. Bd3 Ke3 70. Ba6 f2 71. Nxf2 Kxf2 72. Bb7 c5+ 73. Kc4 Nd6+ 74. Kxc5 Nxb7+ {And White is the lucky defender.   Weighted Error Value: White=0.39/Black=0.40} 1/2-1/2

[Event "Benidorm Open-A 2022"]
[Site "Benidorm"]
[Date "2022.12.10"]
[Round "9.27"]
[White "Draghici Flutur, Gavril"]
[Black "Kocak, Ediz"]
[Result "0-1"]
[ECO "B23"]
[WhiteElo "2012"]
[BlackElo "2115"]
[Annotator "TA"]
[PlyCount "96"]
[EventDate "2022.12.03"]
[EventType "swiss"]
[EventCountry "ESP"]
[SourceTitle "playchess.com"]
[Source "ChessBase"]
[SourceQuality "1"]
[TimeControl "5400+30"]

{[%evp 14,96,4,-23,75,71,163,80,97,102,101,97,195,215,345,363,394,379,469,454,460,278,279,289,424,418,393,361,354,259,249,89,79,77,72,0,0,-7,47,8,11,0,87,-126,-29,-127,-40,-254,-259,-339,-270,-254,-189,-220,-144,-275,-269,-302,-191,-214,-219,-207,-169,-153,-162,-166,-103,-645,-633,-665,-494,-988,-967,-1608,-1330,-29979,-29980,-29980,-29980,-29975,-29976,-29983,-29984,-29985,-29979]} 1. e4 c5 2. Nc3 e6 3. Nf3 a6 4. g3 b5 5. Bg2 Bb7 6. d3 d6 7. O-O Nf6 8. Nh4 Be7 {B40: Sicilian: 2...e6, Unusual lines.} (8... Nc6 $11) 9. e5 $1 $16 Nd5 {[#]} (9... Bxg2 $16 10. exf6 Bxf1 11. fxe7 Qxe7) 10. Qg4 $146 (10. Nxd5 $18 Bxd5 11. Bxd5 exd5 12. Nf5) ({Predecessor:} 10. Nxd5 Bxd5 11. Bxd5 exd5 12. Nf5 dxe5 13. Nxg7+ Kd7 14. Qf3 Kc6 15. c4 f6 16. Nf5 Ra7 17. Be3 Bf8 18. b4 Rd7 19. bxc5 Kc7 20. cxb5 axb5 21. Rfb1 Nc6 22. Rxb5 Qa8 23. a4 {1-0 (23) Kovalevskaya,E (2497)-Ivanov,V (2411) St Petersburg 1999}) 10... dxe5 {White is better.} 11. Qxg7 Bf6 12. Qh6 Be7 {[#]} (12... Nxc3 $16 13. bxc3 (13. Bxb7 Ne2+ 14. Kh1 Ra7 $11) 13... Bxg2 14. Nxg2 Nd7) 13. Ne4 $1 $18 Bf8 (13... Nc6 $142 14. Nf3 Kd7) 14. Qh5 Nd7 15. Bg5 Qc7 16. c4 Ne7 17. Nf6+ Nxf6 18. Bxf6 Rg8 (18... Bxg2 $142 19. Nxg2 (19. Bxh8 Bxf1 20. Rxf1 Ng6 $16) (19. Bxe5 Qb7 $18) 19... Rg8 20. Bxe5 Qc6 21. Qxh7 Rg6) 19. Bxe5 Qd7 20. Bxb7 (20. Qxh7 Bxg2 21. Kxg2 (21. Nxg2 Rg6 $18) 21... Ng6 22. Qxg8 Nxe5 $18) 20... Qxb7 21. cxb5 axb5 22. Rfc1 $2 (22. Qxh7 $18 {has better winning chances.} Rg4 23. h3) 22... Qd5 $16 {[%csl LRa2,LRd3]} 23. Qe2 (23. a3 {simplifies} h6 24. Qf3 Qxf3 25. Nxf3 Nd5 26. b3) 23... Nc6 24. d4 (24. Nf3 $16) 24... cxd4 $11 ({Resist} 24... Nxd4 25. Bxd4 cxd4 26. Qd3 $14) 25. Nf3 Rd8 (25... Rxa2 $2 26. Rxa2 d3 27. Qe3 $18) (25... d3 $11 26. Qe3 Nb4) 26. Bc7 Rd7 27. Bf4 {[%cal Oc1c6] aiming for Rxc6!} Bg7 (27... d3 $1 $11 28. Qe3 f6) 28. Rxc6 $2 {[#]} Qxc6 (28... d3 $1 $17 {[%cal Rd3e2]} 29. Qe3 (29. Rc8+ $2 Ke7 $19) 29... Qxc6) 29. Rc1 (29. Qd3 $11 {keeps the balance.} Rh8 30. Rc1) 29... Qd5 ({Black should play} 29... d3 $1 $17 30. Qe3 Qb7) 30. Nd2 $2 (30. Qd3 $15 f5 31. Re1) 30... d3 $19 (30... Qxa2 $2 31. Rc8+ Ke7 32. Rxg8 $18) 31. Qd1 Ke7 (31... Qxa2 32. Qh5 Qa8 33. Qxb5 $16) 32. Nb3 Bd4 {Against Rc5} 33. Qd2 e5 34. Bg5+ (34. Be3 $17 {is a better defense.}) 34... f6 35. Bh6 Rg6 {[%cal Bg8g6,Bg6g4,Bg4c4][%mdl 32] ...Rg4 is the strong threat.} 36. Nxd4 Qxd4 37. Be3 Qd5 38. Qb4+ Kf7 39. Bd2 h5 ({Better is} 39... Rg7 $19 {White must now prevent ...h5.} 40. Rc5 Qxa2 41. Qxb5 Qe6) 40. a3 $2 {[%mdl 8192]} (40. Rc5 $17 Qxa2 41. Qxb5) 40... Rg4 41. Qa5 Rc4 42. Re1 (42. Rxc4 $142 Qxc4 43. Qb6) 42... h4 {( -> ...h3)} 43. f3 hxg3 44. hxg3 Qxf3 {Black mates.} 45. Re3 Qd1+ 46. Re1 Qg4 47. Re3 Rc2 48. Qb4 Qxb4 {Quite a comeback for Black.   Weighted Error Value: White=0.83/Black=0.44} 0-1

[Event "Benidorm Open-A 2022"]
[Site "Benidorm"]
[Date "2022.12.10"]
[Round "9.28"]
[White "Clemente Llamero, Roberto"]
[Black "Goossens, Hanne"]
[Result "1/2-1/2"]
[ECO "B57"]
[WhiteElo "1955"]
[BlackElo "2200"]
[Annotator "TA"]
[PlyCount "74"]
[EventDate "2022.12.03"]
[EventType "swiss"]
[EventCountry "ESP"]
[SourceTitle "playchess.com"]
[Source "ChessBase"]
[SourceQuality "1"]
[TimeControl "5400+30"]

{[%evp 15,74,14,24,22,24,27,29,19,35,39,39,36,41,41,60,42,39,22,19,-28,-23,-27,-6,-12,0,-28,-32,-28,-25,-43,-26,-34,0,-18,0,0,0,0,0,0,35,33,50,30,74,74,79,62,94,86,74,48,55,53,52,0,74,74,67,74,56]} 1. e4 c5 2. Nf3 d6 3. d4 cxd4 4. Nxd4 Nf6 5. Nc3 Nc6 6. Bc4 Qb6 7. Nxc6 bxc6 8. O-O g6 9. Qe1 {B57: Classical Sicilian: Sozin with 6...Qb6.} Bg7 {9...Qc7 is a critical line.} 10. e5 dxe5 11. Qxe5 {White has an edge.} Qb8 {Inhibits Bb3.} (11... O-O {is more complex.} 12. Na4 Qb7 13. Bb3 Bf5) 12. Qxb8 Rxb8 13. Re1 e6 14. Bb3 O-O {[#]} 15. Na4 $146 ({Predecessor:} 15. Bf4 Rb7 16. Be5 Rd8 17. Na4 Nd7 18. Bxg7 Kxg7 19. Rad1 Re8 20. Rd6 Rc7 21. c4 {1-0 (30) Loncar,R (2385)-Vukovic,N (2172) Porec 2004}) 15... Nd5 16. Bd2 Nb6 17. Bc3 (17. Nxb6 $142 axb6 18. c3) 17... Nxa4 $11 18. Bxa4 Bxc3 19. bxc3 Ba6 20. Bxc6 Rfc8 21. Ba4 Rxc3 22. Rab1 Rd8 23. Red1 Rcc8 24. h3 Kg7 25. Rxd8 Rxd8 {[%mdl 4096] Endgame KRB-KRB} 26. Rb4 h5 27. Bb3 Kf6 28. Ra4 Rd6 29. Ra5 Rc6 {[#]} 30. h4 $1 Ke7 31. Kh2 Kd6 32. Ba4 Rb6 33. a3 Ke7 34. Kg3 Kf6 35. Kf4 (35. f3 $14) 35... Rd6 (35... Bf1 $11 {remains equal.}) 36. Ke3 Ke7 37. g3 Kf6 {Weighted Error Value: White=0.10 (very precise) /Black=0.15 (very precise)} 1/2-1/2